[Event "FIDE Chesscom Online Nations Cup"]
[White "Duda, Jan-Krzysztof"]
[Black "Harikrishna, Pentala"]
[Site "Online"]
[Round "8"]
[Annotator "ChessBase"]
[Result "1-0"]
[Date "2020.05.08"]
[WhiteElo "2774"]
[BlackElo "2690"]
[PlyCount "155"]
[TimeControl "1500+10"]

1. d4 {[%emt 0:0:7]} d5 {[%emt 0:0:5]} 2. c4 {[%emt 0:0:3]} e6 {[%emt 0:0:0]} 3. Nc3 {[%emt 0:0:7]} Be7 {[%emt 0:0:2]} 4. cxd5 {[%emt 0:0:27]} exd5 {[%emt 0:0:3]} 5. Bf4 {[%emt 0:0:1]} c6 {[%emt 0:0:1]} 6. e3 {[%emt 0:0:8]
} Bf5 {[%emt 0:0:3]} 7. Nge2 {[%emt 0:0:32]} Nd7 {[%emt 0:0:0]} 8. Ng3 {[%emt 0:0:22]} Bg6 {[%emt 0:0:3]} 9. h4 {[%emt 0:3:4]} h5 {[%emt 0:0:27]
} 10. Bd3 {[%emt 0:0:3]} Bxd3 {[%emt 0:0:3]} 11. Qxd3 {[%emt 0:0:0]
} g6 {[%emt 0:0:17]} 12. e4 {[%emt 0:0:7]} Ngf6 {[%emt 0:0:0]} 13. e5 {[%emt 0:2:29]} Nh7 {[%emt 0:0:10]} 14. e6 {[%emt 0:0:27]} Ndf8 {[%emt 0:0:8]} 15. exf7+ {[%emt 0:0:20]} Kxf7 {[%emt 0:0:37]} 16. Be5 {[%emt 0:0:0]
} Rg8 {[%emt 0:0:51]} 17. f4 {[%emt 0:3:38]} Bxh4 {[%emt 0:0:0]} 18. f5 {[%emt 0:0:8]} Bxg3+ {[%emt 0:3:4]} 19. Bxg3 {[%emt 0:0:13]} Qg5 {[%emt 0:1:44]} 20. 0-0 {[%emt 0:1:37]} Nf6 {[%emt 0:0:12]} 21. Bf4 {[%emt 0:2:27]
} Qg4 {[%emt 0:0:24]} 22. Nd1 {[%emt 0:1:2]} Re8 {[%emt 0:0:0]} 23. Ne3 {[%emt 0:3:6]} Rxe3 {[%emt 0:0:3]} 24. Bxe3 {[%emt 0:0:3]} gxf5 {[%emt 0:0:16]} 25. Qc2 {[%emt 0:0:1]} Ne6 {[%emt 0:3:29]} 26. Rxf5 {[%emt 0:0:55]
} Nxd4 {[%emt 0:0:27]} 27. Bxd4 {[%emt 0:0:1]} Qxd4+ {[%emt 0:0:0]} 28. Qf2 {[%emt 0:0:59]} Qxf2+ {[%emt 0:0:14]} 29. Rxf2 {[%emt 0:0:0]} Ke6 {[%emt 0:1:33]} 30. Raf1 {[%emt 0:0:36]} Rg6 {[%emt 0:0:2]} 31. Re1+ {[%emt 0:0:13]} Kd6 {[%emt 0:0:48]} 32. Rf5 {[%emt 0:0:3]} d4 {[%emt 0:1:32]
} 33. Ra5 {[%emt 0:2:1]} a6 {[%emt 0:2:18]} 34. Rd1 {[%emt 0:0:0]} Rg4 {[%emt 0:0:15]} 35. Rf5 {[%emt 0:0:2]} Ke6 {[%emt 0:1:13]} 36. Rdf1 {[%emt 0:0:4]} Rg6 {[%emt 0:0:8]} 37. R5f4 {[%emt 0:1:39]} Ke5 {[%emt 0:0:38]
} 38. Rf5+ {[%emt 0:0:6]} Ke6 {[%emt 0:0:1]} 39. R5f4 {[%emt 0:0:56]
} Ke5 {[%emt 0:0:4]} 40. a4 {[%emt 0:0:1]} Nd5 {[%emt 0:0:0]} 41. Rf5+ {[%emt 0:0:3]} Ke4 {[%emt 0:0:1]} 42. Rxh5 {[%emt 0:0:0]} Ne3 {[%emt 0:0:45]} 43. Rf2 {[%emt 0:0:6]} d3 {[%emt 0:0:43]} 44. Rh4+ {[%emt 0:0:45]
} Rg4 {[%emt 0:0:19]} 45. Rh7 {[%emt 0:1:8]} b5 {[%emt 0:0:0]} 46. Rh6 {[%emt 0:0:2]} Nc4 {[%emt 0:0:57]} 47. Rxc6 {[%emt 0:0:19]} Ke3 {[%emt 0:0:57]} 48. axb5 {[%emt 0:0:41]} axb5 {[%emt 0:0:14]} 49. Re6+ {[%emt 0:0:39]
} Kd4 {[%emt 0:0:6]} 50. Re8 {[%emt 0:0:12]} d2 {[%emt 0:0:0]} 51. Rd8+ {[%emt 0:0:8]} Kc5 {[%emt 0:0:31]} 52. b3 {[%emt 0:0:13]} Na5 {[%emt 0:0:15]} 53. Rf3 {[%emt 0:0:21]} Rb4 {[%emt 0:0:11]} 54. Rxd2 {[%emt 0:0:15]
} Nxb3 {[%emt 0:0:3]} 55. Rc2+ {[%emt 0:0:2]} Rc4 {[%emt 0:0:0]} 56. Rf5+ {[%emt 0:0:6]} Kd6 {[%emt 0:0:13]} 57. Ra2 {[%emt 0:0:17]} Nd4 {[%emt 0:0:9]} 58. Ra6+ {[%emt 0:0:6]} Rc6 {[%emt 0:0:1]} 59. Rf6+ {[%emt 0:0:8]
} Kd5 {[%emt 0:0:12]} 60. Rfxc6 {[%emt 0:0:11]} Nxc6 {[%emt 0:0:0]} 61. Rb6 {[%emt 0:0:8]} Kc5 {[%emt 0:0:5]} 62. Rb7 {[%emt 0:0:1]} b4 {[%emt 0:0:6]} 63. Kf2 {[%emt 0:0:1]} Na5 {[%emt 0:0:11]} 64. Rb8 {[%emt 0:0:7]
} Nc6 {[%emt 0:0:2]} 65. Rb7 {[%emt 0:0:12]} Na5 {[%emt 0:0:0]} 66. Ra7 {[%emt 0:0:1]} Nc6 {[%emt 0:0:10]} 67. Ra1 {[%emt 0:0:8]} b3 {[%emt 0:0:49]} 68. Rc1+ {[%emt 0:0:3]} Kb5 {[%emt 0:0:1]} 69. Ke3 {[%emt 0:0:3]
} Ne7 {[%emt 0:0:13]} 70. Kd2 {[%emt 0:0:8]} Nd5 {[%emt 0:0:0]} 71. Rc8 {[%emt 0:0:11]} Nf4 {[%emt 0:0:7]} 72. g4 {[%emt 0:0:45]} Ne6 {[%emt 0:0:23]} 73. Kc3 {[%emt 0:0:5]} Nc5 {[%emt 0:0:5]} 74. Kb2 {[%emt 0:0:24]
} Kb4 {[%emt 0:0:2]} 75. g5 {[%emt 0:0:5]} Nd3+ {[%emt 0:0:0]} 76. Kb1 {[%emt 0:0:2]} Ne5 {[%emt 0:0:20]} 77. Re8 {[%emt 0:0:2]} Nf3 {[%emt 0:0:13]} 78. g6 {[%emt 0:0:7]} 1-0

[Event "FIDE Chesscom Online Nations Cup"]
[White "Wang, Hao"]
[Black "Artemiev, Vladislav"]
[Site "Online"]
[Round "8"]
[Annotator "ChessBase"]
[Result "1/2-1/2"]
[Date "2020.05.08"]
[WhiteElo "2750"]
[BlackElo "2769"]
[PlyCount "138"]
[TimeControl "1500+10"]

1. e4 {[%emt 0:0:3]} c5 {[%emt 0:0:7]} 2. Nf3 {[%emt 0:0:3]} e6 {[%emt 0:0:0]} 3. c3 {[%emt 0:0:3]} d5 {[%emt 0:0:9]} 4. exd5 {[%emt 0:0:2]} Qxd5 {[%emt 0:0:1]} 5. d4 {[%emt 0:0:3]} Nf6 {[%emt 0:0:2]} 6. Na3 {[%emt 0:0:3]
} Nc6 {[%emt 0:0:16]} 7. Nb5 {[%emt 0:0:50]} Qd8 {[%emt 0:0:0]} 8. dxc5 {[%emt 0:0:15]} Bxc5 {[%emt 0:0:2]} 9. Qxd8+ {[%emt 0:0:4]} Kxd8 {[%emt 0:0:1]} 10. Bf4 {[%emt 0:0:4]} Ne4 {[%emt 0:0:57]} 11. Be3 {[%emt 0:0:36]
} Bxe3 {[%emt 0:0:6]} 12. fxe3 {[%emt 0:0:2]} Ke7 {[%emt 0:0:0]} 13. Nbd4 {[%emt 0:0:39]} Bd7 {[%emt 0:0:18]} 14. Nxc6+ {[%emt 0:0:0]} Bxc6 {[%emt 0:0:1]} 15. Nd4 {[%emt 0:0:3]} Bd7 {[%emt 0:1:45]} 16. Be2 {[%emt 0:0:44]} e5 {[%emt 0:0:37]} 17. Nb3 {[%emt 0:0:13]} Rac8 {[%emt 0:0:27]
} 18. Bf3 {[%emt 0:0:11]} Nd6 {[%emt 0:0:13]} 19. 0-0-0 {[%emt 0:0:22]
} Be6 {[%emt 0:0:51]} 20. Bd5 {[%emt 0:0:36]} b6 {[%emt 0:0:0]} 21. Bxe6 {[%emt 0:0:19]} Kxe6 {[%emt 0:0:1]} 22. Rd3 {[%emt 0:0:3]} Ne4 {[%emt 0:1:3]} 23. Rhd1 {[%emt 0:0:5]} a5 {[%emt 0:0:51]} 24. a4 {[%emt 0:0:36]
} h5 {[%emt 0:2:12]} 25. Rd7 {[%emt 0:0:20]} Rc6 {[%emt 0:0:0]} 26. Ra7 {[%emt 0:0:46]} Nd6 {[%emt 0:2:41]} 27. Nd2 {[%emt 0:1:52]} Rhc8 {[%emt 0:0:3]} 28. Kc2 {[%emt 0:1:26]} R6c7 {[%emt 0:0:30]} 29. Rxc7 {[%emt 0:0:9]
} Rxc7 {[%emt 0:0:1]} 30. Kd3 {[%emt 0:0:1]} f5 {[%emt 0:0:0]} 31. Ke2 {[%emt 0:0:6]} g5 {[%emt 0:0:5]} 32. h3 {[%emt 0:0:23]} h4 {[%emt 0:2:6]
} 33. e4 {[%emt 0:2:24]} fxe4 {[%emt 0:0:8]} 34. Rf1 {[%emt 0:0:0]} g4 {[%emt 0:0:42]} 35. hxg4 {[%emt 0:1:6]} Rg7 {[%emt 0:0:5]} 36. Rh1 {[%emt 0:0:23]} Rxg4 {[%emt 0:0:1]} 37. Rh2 {[%emt 0:0:3]} e3 {[%emt 0:2:57]
} 38. Nf1 {[%emt 0:0:48]} Rxa4 {[%emt 0:0:6]} 39. Nxe3 {[%emt 0:0:3]
} Rf4 {[%emt 0:1:9]} 40. Kd3 {[%emt 0:1:22]} Rf2 {[%emt 0:0:0]} 41. c4 {[%emt 0:0:3]} Rf4 {[%emt 0:1:14]} 42. b3 {[%emt 0:0:21]} Rd4+ {[%emt 0:0:17]} 43. Kc2 {[%emt 0:0:9]} a4 {[%emt 0:0:56]} 44. Rh3 {[%emt 0:0:0]} axb3+ {[%emt 0:0:15]} 45. Kxb3 {[%emt 0:0:2]} Rd3+ {[%emt 0:0:2]} 46. Kb4 {[%emt 0:0:44]} e4 {[%emt 0:0:8]} 47. Nd5 {[%emt 0:0:7]} Rxh3 {[%emt 0:0:19]
} 48. gxh3 {[%emt 0:0:4]} Ke5 {[%emt 0:0:42]} 49. Kc3 {[%emt 0:1:46]
} b5 {[%emt 0:0:52]} 50. Ne7 {[%emt 0:0:4]} bxc4 {[%emt 0:0:0]} 51. Ng6+ {[%emt 0:0:2]} Kd5 {[%emt 0:0:2]} 52. Nxh4 {[%emt 0:0:2]} Nb5+ {[%emt 0:0:13]} 53. Kc2 {[%emt 0:0:2]} Nd4+ {[%emt 0:0:8]} 54. Kc3 {[%emt 0:0:3]
} Ne2+ {[%emt 0:0:17]} 55. Kd2 {[%emt 0:0:10]} Nf4 {[%emt 0:0:0]} 56. Nf5 {[%emt 0:0:25]} Kc5 {[%emt 0:0:10]} 57. h4 {[%emt 0:1:0]} Kb4 {[%emt 0:0:19]} 58. Ke3 {[%emt 0:0:25]} c3 {[%emt 0:0:5]} 59. Nd4 {[%emt 0:0:0]} Kc4 {[%emt 0:0:15]} 60. Kxe4 {[%emt 0:0:11]} Nd5 {[%emt 0:0:5]} 61. Nc2 {[%emt 0:0:21]} Nf6+ {[%emt 0:0:11]} 62. Kf5 {[%emt 0:0:17]} Nh5 {[%emt 0:0:11]
} 63. Kg4 {[%emt 0:0:15]} Nf6+ {[%emt 0:0:9]} 64. Kf5 {[%emt 0:0:1]
} Ng8 {[%emt 0:0:2]} 65. h5 {[%emt 0:0:29]} Kd3 {[%emt 0:0:0]} 66. Na3 {[%emt 0:0:25]} c2 {[%emt 0:0:1]} 67. Nxc2 {[%emt 0:0:3]} Kxc2 {[%emt 0:0:1]} 68. Kg5 {[%emt 0:0:1]} Kd3 {[%emt 0:0:1]} 69. h6 {[%emt 0:0:1]
} Nxh6 {[%emt 0:0:1]} 1/2-1/2

[Event "FIDE Chesscom Online Nations Cup"]
[White "Vidit, Santosh Gujrathi"]
[Black "Aronian, Levon"]
[Site "Online"]
[Round "8"]
[Annotator "ChessBase"]
[Result "1-0"]
[Date "2020.05.08"]
[WhiteElo "2636"]
[BlackElo "2778"]
[PlyCount "131"]
[TimeControl "1500+10"]

1. d4 {[%emt 0:0:1]} Nf6 {[%emt 0:0:2]} 2. c4 {[%emt 0:0:2]} e6 {[%emt 0:0:0]} 3. Nc3 {[%emt 0:0:8]} Bb4 {[%emt 0:0:2]} 4. f3 {[%emt 0:0:1]} d5 {[%emt 0:0:5]} 5. a3 {[%emt 0:0:2]} Be7 {[%emt 0:0:7]} 6. e4 {[%emt 0:0:0]} dxe4 {[%emt 0:0:3]} 7. fxe4 {[%emt 0:0:1]} c5 {[%emt 0:0:1]} 8. d5 {[%emt 0:0:1]
} exd5 {[%emt 0:0:3]} 9. exd5 {[%emt 0:0:1]} 0-0 {[%emt 0:0:0]} 10. Be2 {[%emt 0:0:1]} Re8 {[%emt 0:0:16]} 11. Nf3 {[%emt 0:0:3]} Bg4 {[%emt 0:0:28]} 12. 0-0 {[%emt 0:0:2]} Nbd7 {[%emt 0:0:18]} 13. d6 {[%emt 0:1:8]
} Bf8 {[%emt 0:0:3]} 14. h3 {[%emt 0:0:3]} Bh5 {[%emt 0:0:0]} 15. Nb5 {[%emt 0:0:2]} Rb8 {[%emt 0:0:56]} 16. Bf4 {[%emt 0:0:2]} a6 {[%emt 0:0:25]} 17. Nc7 {[%emt 0:0:13]} Re4 {[%emt 0:0:1]} 18. Bg3 {[%emt 0:0:3]
} Bxf3 {[%emt 0:1:24]} 19. Bxf3 {[%emt 0:0:23]} Rd4 {[%emt 0:0:0]} 20. Qe1 {[%emt 0:0:2]} Bxd6 {[%emt 0:0:9]} 21. Nd5 {[%emt 0:0:4]} Bxg3 {[%emt 0:1:37]} 22. Qxg3 {[%emt 0:0:2]} Kh8 {[%emt 0:2:49]} 23. Rad1 {[%emt 0:0:42]
} Qf8 {[%emt 0:3:46]} 24. Rxd4 {[%emt 0:7:8]} cxd4 {[%emt 0:0:0]} 25. b4 {[%emt 0:0:1]} Nxd5 {[%emt 0:0:11]} 26. Bxd5 {[%emt 0:0:15]} Nf6 {[%emt 0:0:3]} 27. Qe5 {[%emt 0:4:24]} Nxd5 {[%emt 0:1:14]} 28. cxd5 {[%emt 0:1:14]
} f6 {[%emt 0:0:27]} 29. Qxd4 {[%emt 0:0:5]} Rd8 {[%emt 0:0:0]} 30. Re1 {[%emt 0:0:37]} h6 {[%emt 0:1:17]} 31. Re6 {[%emt 0:0:4]} Qf7 {[%emt 0:0:2]} 32. Qe4 {[%emt 0:0:7]} Qc7 {[%emt 0:1:56]} 33. a4 {[%emt 0:0:0]} Kg8 {[%emt 0:1:32]} 34. Re7 {[%emt 0:0:40]} Qb6+ {[%emt 0:0:22]} 35. Kh1 {[%emt 0:0:12]} Qd6 {[%emt 0:0:3]} 36. a5 {[%emt 0:1:37]} f5 {[%emt 0:0:0]} 37. Qe6+ {[%emt 0:0:27]} Qxe6 {[%emt 0:0:6]} 38. dxe6 {[%emt 0:0:0]} Rd1+ {[%emt 0:0:15]} 39. Kh2 {[%emt 0:0:2]} Re1 {[%emt 0:0:1]} 40. Kg3 {[%emt 0:0:44]} Re4 {[%emt 0:0:31]} 41. Rxb7 {[%emt 0:0:22]} Rxe6 {[%emt 0:0:1]
} 42. Kf4 {[%emt 0:0:6]} g6 {[%emt 0:0:50]} 43. Kf3 {[%emt 0:0:0]} Kf8 {[%emt 0:0:26]} 44. Rb6 {[%emt 0:0:16]} Re4 {[%emt 0:0:13]} 45. Rxa6 {[%emt 0:0:9]} Rxb4 {[%emt 0:0:3]} 46. Rxg6 {[%emt 0:0:1]} Rb5 {[%emt 0:0:25]
} 47. a6 {[%emt 0:0:30]} h5 {[%emt 0:0:7]} 48. Kf4 {[%emt 0:0:0]} Kf7 {[%emt 0:0:22]} 49. Rc6 {[%emt 0:0:26]} h4 {[%emt 0:0:25]} 50. Kg5 {[%emt 0:0:51]} Rb2 {[%emt 0:0:4]} 51. Kxf5 {[%emt 0:0:37]} Rf2+ {[%emt 0:0:3]
} 52. Kg4 {[%emt 0:1:28]} Rxg2+ {[%emt 0:0:0]} 53. Kxh4 {[%emt 0:0:1]
} Rg1 {[%emt 0:0:22]} 54. Kh5 {[%emt 0:0:35]} Rg3 {[%emt 0:0:0]} 55. h4 {[%emt 0:0:3]} Kg7 {[%emt 0:0:1]} 56. Rc7+ {[%emt 0:0:20]} Kf6 {[%emt 0:0:2]} 57. a7 {[%emt 0:0:8]} Ra3 {[%emt 0:0:24]} 58. Kg4 {[%emt 0:0:0]} Ra4+ {[%emt 0:0:16]} 59. Kf3 {[%emt 0:0:4]} Kg6 {[%emt 0:0:7]} 60. Ke3 {[%emt 0:0:5]} Kh5 {[%emt 0:0:2]} 61. Kd3 {[%emt 0:0:2]} Ra1 {[%emt 0:0:2]
} 62. Kd4 {[%emt 0:0:12]} Kxh4 {[%emt 0:0:2]} 63. Kc5 {[%emt 0:0:1]
} Kg5 {[%emt 0:0:1]} 64. Kb6 {[%emt 0:0:2]} Kf6 {[%emt 0:0:0]} 65. Kb7 {[%emt 0:0:4]} Rb1+ {[%emt 0:0:2]} 66. Kc8 {[%emt 0:0:1]} 1-0

[Event "FIDE Chesscom Online Nations Cup"]
[White "Koneru, Humpy"]
[Black "Muzychuk, Anna"]
[Site "Online"]
[Round "8"]
[Annotator "ChessBase"]
[Result "1/2-1/2"]
[Date "2020.05.08"]
[WhiteElo "2483"]
[BlackElo "2533"]
[PlyCount "137"]
[TimeControl "1500+10"]

1. d4 {[%emt 0:0:2]} d5 {[%emt 0:0:4]} 2. c4 {[%emt 0:0:3]} c6 {[%emt 0:0:0]} 3. Nf3 {[%emt 0:0:2]} Nf6 {[%emt 0:0:2]} 4. e3 {[%emt 0:0:1]} Bg4 {[%emt 0:0:3]} 5. cxd5 {[%emt 0:0:11]} cxd5 {[%emt 0:0:25]} 6. Nc3 {[%emt 0:0:3]
} e6 {[%emt 0:4:38]} 7. Qb3 {[%emt 0:0:35]} Bxf3 {[%emt 0:0:0]} 8. gxf3 {[%emt 0:0:26]} Qd7 {[%emt 0:0:33]} 9. Bb5 {[%emt 0:2:36]} Nc6 {[%emt 0:0:3]} 10. Na4 {[%emt 0:1:23]} Bb4+ {[%emt 0:1:57]} 11. Kf1 {[%emt 0:3:20]
} Bd6 {[%emt 0:2:8]} 12. Bd2 {[%emt 0:0:32]} 0-0 {[%emt 0:0:0]} 13. Rc1 {[%emt 0:3:24]} Rfc8 {[%emt 0:1:1]} 14. Kg2 {[%emt 0:1:55]} Qe7 {[%emt 0:3:0]} 15. Bxc6 {[%emt 0:2:7]} bxc6 {[%emt 0:0:33]} 16. Qd3 {[%emt 0:0:8]
} e5 {[%emt 0:1:42]} 17. dxe5 {[%emt 0:0:22]} Qxe5 {[%emt 0:0:0]} 18. Bc3 {[%emt 0:2:14]} Qg5+ {[%emt 0:0:38]} 19. Kf1 {[%emt 0:0:2]} Qh4 {[%emt 0:0:5]} 20. b3 {[%emt 0:1:59]} Nd7 {[%emt 0:1:55]} 21. Qf5 {[%emt 0:1:9]
} Qe7 {[%emt 0:0:37]} 22. Rg1 {[%emt 0:0:54]} g6 {[%emt 0:0:0]} 23. h4 {[%emt 0:1:41]} Be5 {[%emt 0:0:52]} 24. h5 {[%emt 0:1:24]} Re8 {[%emt 0:1:40]
} 25. Bxe5 {[%emt 0:0:50]} Nxe5 {[%emt 0:0:4]} 26. Rg3 {[%emt 0:0:12]
} Qh4 {[%emt 0:0:38]} 27. Qh3 {[%emt 0:0:37]} Qxh3+ {[%emt 0:0:0]} 28. Rxh3 {[%emt 0:0:1]} Rac8 {[%emt 0:0:4]} 29. Nc5 {[%emt 0:0:3]
} Re7 {[%emt 0:0:37]} 30. hxg6 {[%emt 0:0:44]} hxg6 {[%emt 0:0:3]} 31. Kg2 {[%emt 0:0:14]} Kg7 {[%emt 0:0:12]} 32. f4 {[%emt 0:0:27]} Nd7 {[%emt 0:0:0]} 33. Rhh1 {[%emt 0:0:12]} Kf6 {[%emt 0:0:55]} 34. Kf3 {[%emt 0:0:12]} Nxc5 {[%emt 0:0:31]} 35. Rxc5 {[%emt 0:0:2]} Ke6 {[%emt 0:0:5]} 36. Rhc1 {[%emt 0:0:9]
} Kd6 {[%emt 0:0:2]} 37. b4 {[%emt 0:0:4]} Rb7 {[%emt 0:0:0]} 38. a3 {[%emt 0:0:15]} Rcc7 {[%emt 0:0:8]} 39. f5 {[%emt 0:0:16]} gxf5 {[%emt 0:0:35]} 40. Kf4 {[%emt 0:0:1]} a6 {[%emt 0:0:20]} 41. Kxf5 {[%emt 0:0:30]
} Rb5 {[%emt 0:0:2]} 42. Kf6 {[%emt 0:0:13]} Rb8 {[%emt 0:0:0]} 43. Ra5 {[%emt 0:0:11]} Ra7 {[%emt 0:0:6]} 44. Rac5 {[%emt 0:0:4]} Rc7 {[%emt 0:0:1]} 45. Rh1 {[%emt 0:0:6]} Rg8 {[%emt 0:0:10]} 46. Rh6 {[%emt 0:0:3]
} Rg2 {[%emt 0:0:12]} 47. Kf5+ {[%emt 0:0:2]} Kd7 {[%emt 0:0:0]} 48. Rc2 {[%emt 0:0:2]} Rc8 {[%emt 0:0:26]} 49. Rf6 {[%emt 0:0:29]} Rg7 {[%emt 0:0:8]} 50. Rc5 {[%emt 0:0:18]} Rh7 {[%emt 0:0:11]} 51. Kf4 {[%emt 0:0:7]
} Rh4+ {[%emt 0:0:23]} 52. Kf3 {[%emt 0:0:4]} Rh7 {[%emt 0:0:0]} 53. Ke2 {[%emt 0:0:6]} Rg7 {[%emt 0:0:11]} 54. Ra5 {[%emt 0:0:7]} Ra8 {[%emt 0:0:14]} 55. Rc5 {[%emt 0:0:10]} Rc8 {[%emt 0:0:3]} 56. Kd3 {[%emt 0:0:1]
} Rh7 {[%emt 0:0:4]} 57. Ra5 {[%emt 0:0:11]} Ke7 {[%emt 0:0:0]} 58. Rf4 {[%emt 0:0:10]} Ra8 {[%emt 0:0:2]} 59. a4 {[%emt 0:0:4]} Rh6 {[%emt 0:0:37]} 60. b5 {[%emt 0:0:27]} c5 {[%emt 0:0:13]} 61. bxa6 {[%emt 0:0:0]} Rhxa6 {[%emt 0:0:2]} 62. Rxc5 {[%emt 0:0:4]} Rxa4 {[%emt 0:0:1]} 63. Rc7+ {[%emt 0:0:6]} Kd6 {[%emt 0:0:8]} 64. Rfxf7 {[%emt 0:0:10]} Ra2 {[%emt 0:0:3]
} 65. Rfd7+ {[%emt 0:0:11]} Ke6 {[%emt 0:0:4]} 66. Re7+ {[%emt 0:0:5]
} Kd6 {[%emt 0:0:5]} 67. Red7+ {[%emt 0:0:8]} Ke6 {[%emt 0:0:0]} 68. Re7+ {[%emt 0:0:6]} Kd6 {[%emt 0:0:1]} 69. Red7+ {[%emt 0:0:0]} 1/2-1/2